Cogmind - Beta 17 @@@ ROGUE MODE // 2026.08.04 @ 20:11:19 Player: P9H Result: Destroyed by I9-UNH(R) with Subdweller Machine Gun Performance ------------- Evolutions (0) 0 Regions Visited (3) 600 Robots Destroyed (27) 135 Value Destroyed (465) 465 Prototype IDs (0) 0 Alien Tech Used (0) 0 Bonus (25) 25 TOTAL SCORE: 1225 Bonus ------- Follower Combat Kills 25 Cogmind --------- Core Integrity 0/250 Matter 211/300 Energy 250/250 System Corruption 0% Temperature Cool (0) Movement Rolling (110) Ox2 Location -10/Subcaves Parts ------- > --- POWER (1) -------- Ion Engine > --- PROPULSION (2) --- Wheel > --- UTILITY (2) ------ Large Storage Unit Structural Scanner > --- WEAPON (2) ------- Mining Claw Mining Claw > --- INVENTORY (15) --- Light Ion Engine Light Ion Engine Wheel Wheel Wheel Compact Wheel Compact Wheel Compact Wheel Improved Terrain Scanner Light Assault Rifle Light Assault Rifle Rocket Launcher Rocket Launcher Rocket Launcher Rocket Launcher Peak State ------------ > --- POWER ------------ Ion Engine > --- PROPULSION ------- Compact Wheel Compact Wheel > --- UTILITY ---------- Large Storage Unit Structural Scanner > --- WEAPON ----------- Rocket Launcher Rocket Launcher > --- INVENTORY -------- Light Ion Engine Light Ion Engine Wheel Wheel Wheel Compact Wheel Compact Wheel Improved Terrain Scanner Light Assault Rifle Light Assault Rifle Rocket Launcher Rocket Launcher Mining Claw Mining Claw [Rating: 10] Favorites ----------- Power Light Ion Engine Engine Light Ion Engine Propulsion Aluminum Leg Treads Light Treads Leg Aluminum Leg Wheel Compact Wheel Utility Large Storage Unit Device Heat Sink Storage Large Storage Unit Weapon Light Assault Rifle Energy Gun Medium Laser Ballistic Gun Light Assault Rifle Launcher Rocket Launcher Slashing Weapon Mining Claw Build | -11 -10 -10 -10 ------- Run | Yrd Mat Min Sub Slots Evolved . | . . . . Power . | . . . . Propulsion . | . . . . Utility . | . . . . Weapon . | . . . . Parts Attached 24 | 8 10 6 . Power 3 | . 3 . . Engine 3 | . 3 . . Core . | . . . . Reactor . | . . . . Propulsion 8 | 4 2 2 . Treads 1 | 1 . . . Leg 3 | 1 2 . . Wheel 4 | 2 . 2 . Hover . | . . . . Flight . | . . . . Utility 5 | 2 2 1 . Device 3 | 1 1 1 . Storage 2 | 1 1 . . Processor . | . . . . Hackware . | . . . . Protection . | . . . . Artifact . | . . . . Weapon 8 | 2 3 3 . Energy Gun 1 | 1 . . . Energy Cannon . | . . . . Ballistic Gun 3 | 1 2 . . Ballistic Cannon . | . . . . Launcher 2 | . . 2 . Special Weapon . | . . . . Impact Weapon . | . . . . Slashing Weapon 2 | . 1 1 . Piercing Weapon . | . . . . Special Melee Weapon . | . . . . Unidentified Prototypes . | . . . . Parts Lost 6 | . 3 2 1 Power 1 | . 1 . . Propulsion 3 | . 1 1 1 Utility 2 | . 1 1 . Weapon . | . . . . Highest Loss Streak 2 | . 2 1 1 To Critical Strikes . | . . . . Average Backups 12 | 4 12 14 15 Power 1 | 1 1 2 2 Propulsion 5 | 3 5 5 6 Utility 1 | . 1 1 1 Weapon 4 | . 3 5 6 Tool/Special . | . . . . Unused Backups 15 | . 4 2 9 Power 2 | . . . 2 Propulsion 5 | . . 1 4 Utility 2 | . . 1 1 Weapon 6 | . 4 . 2 Tool/Special . | . . . . Average Slot Usage (%) 97 | . 97 98 100 Engine 12 | . 11 14 14 Leg 20 | . 27 2 . Wheel 7 | . . 24 28 Device 13 | . 13 13 14 Storage 14 | . 14 14 14 Energy Gun 1 | . 1 . . Ballistic Gun 20 | . 23 11 . Slashing Weapon 5 | . 2 12 28 Peak Build Rating 10 | 6 8 10 9 Average Rating 7 | 4 7 8 8 On Entrance 5 | . 6 8 9 Avg Prop Armor Cover (%) 4 | 4 4 . . Naked Turns . | . . . . Heaviest Build 34 | 9 29 34 30 Greatest Support 32 | 32 20 32 26 Greatest Overweight (x) 2 | 1 2 2 2 Average Overweight (x) . | . . . 1 Largest Inventory Capacity 15 | 8 15 15 15 Average Capacity 14 | 7 14 15 15 Most Carried 15 | 8 15 15 15 Average Carried 12 | 5 12 14 15 Final Capacity 15 | 8 15 15 15 Final Carried 15 | 8 15 15 15 Class Distribution -------------------- 100% | Mutant Dominant Class ---------------- Mutant | -10/Materials Mutant | -10/Mines Mutant | -10/Subcaves Resources | -11 -10 -10 -10 ----------- Run | Yrd Mat Min Sub Matter Collected 467 | 281 143 43 . Remotely 123 | 42 81 . . Salvage Created 688 | 52 365 271 . Parts 45 | 4 20 21 . Haulers Intercepted . | . . . . Recyclers Shooed 4 | . 3 1 . Parts Field Recycled . | . . . . Retrieved Matter . | . . . . Parts Self-Destructed . | . . . . Prevented . | . . . . Parts Restored . | . . . . Kills | -11 -10 -10 -10 ------- Run | Yrd Mat Min Sub Combat Hostiles Destroyed 19 | . 12 7 . Melee 4 | . 2 2 . Guns 12 | . 10 2 . AOE 3 | . . 3 . Classes Destroyed 5 | 1 2 2 . Worker 1 | . . 1 . Tunneler 4 | . . 4 . Recycler 3 | 1 1 1 . Swarmer 11 | . 8 3 . Grunt 8 | . 4 4 . Best Kill Streak 7 | 1 4 7 . Combat Bots Only 4 | . 4 3 . Max Kills in Single Turn 4 | 1 1 4 . Gunslinging . | . . . . Exploded 2 | . . 2 . Melee 1 | . 1 1 . Uniques/NPCs Destroyed . | . . . . Combat | -11 -10 -10 -10 -------- Run | Yrd Mat Min Sub Hostile Shots Fired 103 | . 56 44 3 Missed 18 | . 11 6 1 Hits 85 | . 45 38 2 Projectile 85 | . 45 38 2 Critical Strikes 1 | . . . 1 Damage Taken 899 | . 481 366 52 Core 264 | . 98 140 26 Absorbed by Shields . | . . . . Core Remaining (%) 100 | 100 . . . Volleys Fired 52 | 1 35 16 . Largest 2 | 2 2 2 . Hottest 70 | 70 70 66 . Shots Fired 89 | 2 69 18 . Gun 85 | 2 69 14 . Cannon . | . . . . Launcher 4 | . . 4 . Special . | . . . . Kinetic 68 | 1 53 14 . Thermal 17 | 1 16 . . Explosive 4 | . . 4 . Electromagnetic . | . . . . Robot Hit Streak 10 | 2 10 6 . Robot Miss Streak 5 | . 5 4 . Penetration Max . | . . . . Secondary Targets . | . . . . Shots Hit Robots 67 | 2 47 16 2 Core Hits 40 | 2 22 16 . Critical Kills . | . . . . Critical Parts Destroyed 1 | . 1 . . Critical Strikes 2 | . 2 . . Burn 1 | . 1 . . Destroy 1 | . 1 . . Melee Attacks 28 | . 7 19 2 Impact . | . . . . Slashing 28 | . 7 19 2 Piercing . | . . . . Sneak Attacks 4 | . 1 3 . Combat Hostiles . | . . . . Follow-up Attacks 1 | . . . 1 Damage Inflicted 1359 | 19 549 769 22 Guns 492 | 19 397 76 . Cannons . | . . . . Explosions 451 | . . 451 . Melee 381 | . 117 242 22 Ramming 35 | . 35 . . Kinetic 356 | 7 273 76 . Thermal 136 | 12 124 . . Explosive 451 | . . 451 . Electromagnetic . | . . . . Impact . | . . . . Slashing 381 | . 117 242 22 Piercing . | . . . . Highest Corruption . | . . . . Average Corruption . | . . . . Corruption Purged . | . . . . Corruption Blocked . | . . . . Overload Shots . | . . . . Overflow Damage 41 | . 4 37 . Projectiles . | . . . . Explosions 19 | . . 19 . Melee 22 | . 4 18 . Knockbacks 1 | . 1 . . Impact 1 | . 1 . . Kinetic . | . . . . Secondary . | . . . . Self-Inflicted Damage . | . . . . Shots . | . . . . Rammed . | . . . . Targets Rammed 5 | . 5 . . Kicked 5 | . 5 . . Crushed . | . . . . Highest Temperature 59 | 20 59 24 . Average Temperature 20 | 15 21 15 . Received Heat Transfer 234 | . 132 102 . Siege Activations . | . . . . Martial Activations . | . . . . Shielding Activations . | . . . . Robots Disrupted . | . . . . Combat Hostiles . | . . . . Robots Corrupted . | . . . . Combat Hostiles . | . . . . Parts Fried . | . . . . Impact Corruptions . | . . . . Robots Melted . | . . . . Combat Hostiles . | . . . . Parts Melted 1 | . 1 . . Heat Transferred 481 | 37 444 . . Parts Sabotaged . | . . . . Parts Stolen . | . . . . Parts Stripped . | . . . . Power Chain Reactions . | . . . . Alert | -11 -10 -10 -10 ------- Run | Yrd Mat Min Sub Maximum Alert Level . | . . . . Low Security (%) 100 | 100 100 100 . Level 1 . | . . . . Level 2 . | . . . . Level 3 . | . . . . Level 4 . | . . . . Level 5 . | . . . . High Security . | . . . . Max Security . | . . . . Peak Influence 110 | 5 110 101 . Initial 12 | . . 12 . Average 30 | . 33 30 . Influence Increases 627 | 5 376 246 . Destroy 0b10 Robot/C 400 | . 240 160 . Destroy 0b10 Robot/NC 40 | 5 5 30 . Destroy Leader 60 | . 40 20 . Allied During Kill 6 | . . 6 . Disable Machine 15 | . . 15 . Destroy Structure 16 | . 1 15 . Lose Combat Pursuer 90 | . 90 . . Influence Decreases 620 | 5 343 221 51 Entered New Map 52 | . . 21 31 Time Decay 512 | 5 333 164 10 Lost Part 30 | . 10 10 10 Lost Ally 26 | . . 26 . Squads Dispatched 2 | . 2 . . Investigation 1 | . 1 . . Extermination . | . . . . Reinforcement 1 | . 1 . . Assault . | . . . . Garrison . | . . . . Intercept . | . . . . Searches Triggered . | . . . . Construction Impeded . | . . . . Haulers Reinforced . | . . . . Active Scanning Responses . | . . . . Cargo Convoy Interrupts . | . . . . Stealth | -11 -10 -10 -10 --------- Run | Yrd Mat Min Sub Distress Signals 3 | . 3 . . Communications Jammed . | . . . . Distress Signals . | . . . . Times Spotted 34 | . 24 8 2 Peak Tracking Total 5 | . 5 3 . Tactical Retreats 4 | . 4 . . Traps | -11 -10 -10 -10 ------- Run | Yrd Mat Min Sub Traps Triggered 2 | . 2 . . Indirectly . | . . . . Trap Hack Attempts . | . . . . Triggered . | . . . . Disarmed . | . . . . Reprogrammed . | . . . . Reused . | . . . . Traps Extracted . | . . . . Installed . | . . . . Triggered . | . . . . Machines | -11 -10 -10 -10 ---------- Run | Yrd Mat Min Sub Machines Disabled 1 | . . 1 . Max in Single Turn 1 | . . 1 . Machines Repaired . | . . . . Machines Dismantled . | . . . . Machines Sabotaged . | . . . . Overloaded Fab Kills . | . . . . Hacking | -11 -10 -10 -10 --------- Run | Yrd Mat Min Sub Machines Accessed 1 | . 1 . . Terminals 1 | . 1 . . Fabricators . | . . . . Repair Stations . | . . . . Recycling Units . | . . . . Scanalyzers . | . . . . Garrison Access . | . . . . Total Hacks 2 | . 2 . . Successful 1 | . 1 . . Failed 1 | . 1 . . Catastrophic . | . . . . Database Lockouts . | . . . . Manual . | . . . . Terminals 2 | . 2 . . Fabricators . | . . . . Repair Stations . | . . . . Recycling Units . | . . . . Scanalyzers . | . . . . Garrison Access . | . . . . Terminal Hacks 1 | . 1 . . Branch Access Points 1 | . 1 . . Fabricator Hacks . | . . . . Repair Station Hacks . | . . . . Recycling Unit Hacks . | . . . . Scanalyzer . | . . . . Garrison Access Hacks . | . . . . Unauthorized Hacks . | . . . . Terminals . | . . . . Fabricators . | . . . . Repair Stations . | . . . . Recycling Units . | . . . . Scanalyzers . | . . . . Garrison Access . | . . . . Data Cores Recovered . | . . . . Used . | . . . . Hacking Detections 1 | . 1 . . Full Trace Events . | . . . . Feedback Events . | . . . . Feedback Blocked . | . . . . Robot Schematics Acquired . | . . . . Robots Built . | . . . . Authchips . | . . . . Time . | . . . . Total Robot Build Rating . | . . . . Part Schematics Acquired . | . . . . Parts Built . | . . . . Authchips . | . . . . Time . | . . . . Total Part Build Rating . | . . . . Part Studies Acquired . | . . . . Parts Repaired . | . . . . Time . | . . . . Parts Recycled . | . . . . Recycled Matter . | . . . . Retrieved Matter . | . . . . Retrieved Components . | . . . . Parts Scanalyzed . | . . . . Part Schematics Acquired . | . . . . Parts Damaged . | . . . . Bothacking | -11 -10 -10 -10 ------------ Run | Yrd Mat Min Sub Used RIF Installer . | . . . . Robots Hacked . | . . . . Non-combat . | . . . . Combat . | . . . . Robot Hacks Applied . | . . . . Relay Couplers Released . | . . . . Fabnet Peak Effective % . | . . . . Robots Rewired . | . . . . Allies Hacked . | . . . . Hacks Repelled . | . . . . Allies | -11 -10 -10 -10 -------- Run | Yrd Mat Min Sub Total Allies 2 | . . 2 . Largest Group 2 | . . 2 . Highest-Rated Group 41 | . . 41 . Highest-Rated Ally 31 | . . 31 . Total Orders . | . . . . Ally Attacks 10 | . . 10 . Total Damage 170 | . . 170 . Kills 1 | . . 1 . Allies Corrupted . | . . . . Allies Melted . | . . . . Intel | -11 -10 -10 -10 ------- Run | Yrd Mat Min Sub Active Infowar (turns) 234 | . . 195 39 Structural 234 | . . 195 39 Robot Analysis Total . | . . . . Derelict Logs Recovered 2 | . . 2 . Drone Launches . | . . . . Drone Recoveries . | . . . . Exploration | -11 -10 -10 -10 ------------- Run | Yrd Mat Min Sub Turns Passed 1886 | 97 1288 462 39 Spaces Moved 986 | 66 563 339 18 Core 5 | 5 . . . Treads 1 | 1 . . . Legs 613 | 41 563 9 . Wheels 367 | 19 . 330 18 Hover . | . . . . Flight . | . . . . Fastest Speed 50 | 50 120 100 105 Average Speed 152 | 112 187 103 105 Slowest Speed 260 | 160 260 260 110 Overloaded Moves . | . . . . Propulsion Burnouts . | . . . . Robots Hopped . | . . . . Potential Cave-ins . | . . . . Cave-ins Triggered . | . . . . Exploration Rate (%) 39 | 4 70 79 3 Regions Visited 3 Branch Regions 2 Pre-discovered Areas . | . . . . Known Exits Taken 1 | . 1 . . Unknown Exits Taken 2 | 1 . 1 . Scrap Searched 2 | . . 2 . Spaces Dug 2 | . 1 1 . Terrain Destroyed 16 | . 1 15 . Melee 2 | . 1 1 . Projectile . | . . . . AOE 14 | . . 14 . Terrain Rammed . | . . . . Walls Destroyed . | . . . . Machines Disabled . | . . . . Actions | -11 -10 -10 -10 --------- Run | Yrd Mat Min Sub Total 1244 | 84 722 400 38 Wait 102 | . 78 5 19 Move 983 | 65 562 338 18 Hop . | . . . . Pick Up 32 | 9 16 7 . Fast Attach 6 | 5 1 . . Attach 9 | 2 4 3 . Detach 3 | 1 1 1 . Swap 11 | 1 5 5 . Drop 14 | . 8 6 . Fire 52 | 1 35 16 . Melee 27 | . 7 19 1 Ram . | . . . . Kick 5 | . 5 . . Crush . | . . . . Escape Stasis . | . . . . Rewire . | . . . . Trap . | . . . . Miscellaneous . | . . . . Route ------- -11/Scrapyard -10/Materials (discovered 3 exits: [*Mat] / *Min x2) -10/Mines (discovered 3 exits: [*Mat x2] / [*Sub]) -10/Subcaves History --------- Turn | Location | Event 12 | -11/Scrapyard | Discovered new exit (range 16) 98 | -11/Scrapyard | Entered Materials 309 | -10/Materials | Build established: Mutant 477 | -10/Materials | Discovered new exit (range 8) 639 | -10/Materials | Identified exit to Mines 1386 | -10/Materials | Entered Mines 1411 | -10/Mines | Core integrity fell below 50% 1468 | -10/Mines | Learned Materials stockpile data 1468 | -10/Mines | Discovered new exit (range 9) 1478 | -10/Mines | Met a Derelict bent on vengeance 1647 | -10/Mines | Discovered new exit (range 7) 1668 | -10/Mines | Core integrity fell below 20% 1726 | -10/Mines | Excavation squad dispatched 1726 | -10/Mines | A large section of the Mines collapsed 1821 | -10/Mines | Learned Materials emergency access door positions 1825 | -10/Mines | Discovered new exit (range 17) 1848 | -10/Mines | Entered Subcaves 1849 | -10/Subcaves | Approached by a straggling Scientist 1887 | -10/Subcaves | Destroyed by I9-UNH(R) with Subdweller Machine Gun Last Messages --------------- 01785_ R-06 Scavenger destroyed. 01806_ K-01 Serf collects debris. 01821_ Acquired derelict log, extracted data. Data stored: Materials emergency access points. 01825_ EXIT=FOUND LOCATION=UNKNOWN AMBIENT_HEAT=-10 GOAL=ESCAPE 01849_ E8-05D(c): "Thank the algorithms! I was beginning to lose hope I'd never make it past all the Subs lurking out here." 01852_ E8-05D(c): "Hey, let me tag along and I can get us both out of this nasty situation. At least I think I can... The group I got separated from was talking about a shortcut back to the UFD." 01885_ Com. Wheel destroyed. 01886_ I9-UNH(R) Sub. Monowheel ripped off. 01886_ Mining Claw follow-up attack on I9-UNH(R). Map ----- +----------------------------------------------------+ | ?????????????????????????????????????????????????? | | ?????????????????????????????????????????????????? | | ?????????????????????????????????????????????????? | | ?????????????????????????????????????????????????? | | ?????????????????????????????????????????????????? | | ?????????????????????????????????????????????????? | | ?????????????????????????????????????????????????? | | ?????????????????????????????????????????????????? | | ?????????????????????????????????????????????????? | | ?????????????????????????????????????????????????? | | ?????????????????????????????????????????????????? | | ?????????????????????????????????????????????????? | | ?????????????????????????????????????????????????? | | ?????????????????????????????????????????????????? | | ?????????????????????????????????????????????????? | | ?????????????????????????????????????????????????? | | ???????????????#######???????????????????????????? | | ???????????????#######???????????????????????????? | | ???????????????# ###????????????????????????? | | ?????????????????? ###????????????????????????? | | ??????????????????? # ????????????????????????? | | ???????????????????? ?????????????????????????? | | ????????????????????? ????????????????????????? | | ?????????????????????## ## ?????????????????????? | | ?????????????????????###R#####???????????????????? | | ?????????????????????###R@######?????????????????? | | ????????????????????#### ####?????????????????? | | ??????????????????##### ##?????????????????? | | ??????????????????#""# ####???????????????? | | ?????????????? & < #### #????????????? | | ????????????? R< ##### ## ##????????????? | | ????????????? ## R ####### ## ##????????????? | | ?????????????###" < ##??### # # ##????????????? | | ??????????????##< & # ?????### ##????????????? | | ??????????????###< ?????### ###????????????? | | ???????????????## ????????## #####????????????? | | ??????????????? ?????????### ####?????????????? | | ??????????????? ?????????## ##??????????????? | | ???????????????????????????## ###??????????????? | | ??????????????????????????#### ###?????????????? | | ?????????????????????????#### #####????????????? | | ?????????????????????????### ###????????????? | | ?????????????????????????## ##????????????? | | ?????????????????????????## ###????????????? | | ????????????????????????? #######????????????? | | ????????????????????? #######?????????????? | | ????????????????????? ## ####?????????????????? | | ?????????????????????#### ##???????????????????? | | ??????????????????????### ?????????????????????? | | ???????????????????????## ?????????????????????? | +----------------------------------------------------+ Best States ------------- Heat Dissipation 35 Energy Generation 10 Energy Capacity 250 Matter Stores 300 Matter Capacity 300 Sight Range 16 Terrain Scan Density 10 Evasion (%) 55 Item Schematics ----------------- None Robot Schematics ------------------ None Fabricated ------------ Nothing Repaired ---------- Nothing Studied --------- None Alien Tech Used ----------------- None Achievements -------------- None Challenges ------------ None Game ------ Seed AssembledFieldthrustMount Manual? 0 Play Time 00:14:02 Cumulative 78.2 hours Start 2026.08.04 @ 19:55:40 End 2026.08.04 @ 20:11:19 Sessions 1 Manual Loads 0 Difficulty Rogue Special Mode None Game No. 144 Rogue 144 Adventurer 0 Explorer 0 Win Type - Total 0 Types 0/0/0/0/0/0/0/0/0/0 Lore% 14 Gallery% 37 Achievement% 22 Wizard Run 0 Options --------- Layout 1 ASCII 0 Keyboard 1 Movement Numpad Keybinds 0 Fullscreen 2 Font 32/SmallcapsGlow Map View 50x35 Zoom Use 0% Tactical HUD 1 Map Filters NONE Filters NONE Steam 1 RUN: a17ae02b-b2d4-45e5-b334-2d1187a18587